fUSD/lending_fUSD_20260516
["ID","MTS","AMOUNT","RATE_DAILY","PERIOD"]
[422380595,1778908238000,-150.0,0.00014722,2]
[422380594,1778908238000,-150.0,0.00014634,2]
[422380592,1778908238000,-700.0,0.00014509,2]
[422380591,1778908238000,-5937.1,0.00014504,2]
[422380590,1778908238000,-49289.99808729,0.00014504,2]
[422380602,1778908238000,-151.0,0.00014775,2]
[422380596,1778908238000,-184.04,0.00014775,2]
[422380603,1778908238000,-151.0,0.00014775,2]
[422380601,1778908238000,-152.72,0.00014775,2]
[422380606,1778908238000,-393.98,0.00014775,2]
[422380618,1778908238000,-151.0,0.00014775,2]
[422380604,1778908238000,-183.24,0.00014775,2]
[422380617,1778908238000,-479.59,0.00014775,2]
[422380615,1778908238000,-153.16,0.00014775,2]
[422380612,1778908238000,-479.59,0.00014775,2]
[422380611,1778908238000,-151.0,0.00014775,2]
[422380605,1778908238000,-393.98,0.00014775,2]
[422380616,1778908238000,-151.0,0.00014775,2]
[422380609,1778908238000,-151.0,0.00014775,2]
[422380610,1778908238000,-164.32,0.00014775,2]
[422380613,1778908238000,-151.0,0.00014775,2]
[422380608,1778908238000,-479.59,0.00014775,2]
[422380607,1778908238000,-151.0,0.00014775,2]
[422380614,1778908238000,-151.0,0.00014775,2]
[422380658,1778908239000,-500.0,0.00014999,2]
[422380654,1778908239000,-250.0,0.00014986,2]
[422380655,1778908239000,-268.43046912,0.00014986,2]
[422380651,1778908239000,-250.0,0.00014986,2]
[422380660,1778908239000,-500.0,0.00014999,2]
[422380661,1778908239000,-500.0,0.00014999,2]
[422380653,1778908239000,-250.0,0.00014986,2]
[422380652,1778908239000,-267.09,0.00014986,2]
[422380656,1778908239000,-151.0,0.00014997,2]
[422380645,1778908239000,-250.0,0.00014959,2]
[422380662,1778908239000,-500.0,0.00014999,2]
[422380659,1778908239000,-500.0,0.00014999,2]
[422380665,1778908239000,-500.0,0.00014999,2]
[422380664,1778908239000,-509.75253239,0.00014999,2]
[422380674,1778908239000,-500.0,0.00014999,2]
[422380675,1778908239000,-529.54071265,0.00014999,2]
[422380663,1778908239000,-500.0,0.00014999,2]
[422380647,1778908239000,-558.78,0.00014985,2]
[422380671,1778908239000,-500.0,0.00014999,2]
[422380666,1778908239000,-500.0,0.00014999,2]
[422380667,1778908239000,-504.08398651,0.00014999,2]
[422380670,1778908239000,-500.0,0.00014999,2]
[422380668,1778908239000,-500.0,0.00014999,2]
[422380672,1778908239000,-506.02433073,0.00014999,2]
[422380673,1778908239000,-500.0,0.00014999,2]
[422380657,1778908239000,-500.0,0.00014998,2]
[422380650,1778908239000,-191.66,0.00014985,2]
[422380641,1778908239000,-5000.0,0.000149,2]
[422380649,1778908239000,-273.8,0.00014985,2]
[422380669,1778908239000,-504.92605126,0.00014999,2]
[422380628,1778908239000,-479.59,0.00014775,2]
[422380627,1778908239000,-151.0,0.00014775,2]
[422380621,1778908239000,-151.0,0.00014775,2]
[422380622,1778908239000,-479.59,0.00014775,2]
[422380620,1778908239000,-151.0,0.00014775,2]
[422380623,1778908239000,-151.0,0.00014775,2]
[422380624,1778908239000,-479.59,0.00014775,2]
[422380619,1778908239000,-475.31,0.00014775,2]
[422380625,1778908239000,-189.04,0.00014775,2]
[422380626,1778908239000,-151.0,0.00014775,2]
[422380629,1778908239000,-294.31,0.00014775,2]
[422380630,1778908239000,-151.0,0.00014775,2]
[422380639,1778908239000,-150.0,0.00014898,2]
[422380631,1778908239000,-151.0,0.00014775,2]
[422380638,1778908239000,-200.0,0.0001488,2]
[422380635,1778908239000,-151.0,0.00014775,2]
[422380637,1778908239000,-150.0,0.0001481,2]
[422380634,1778908239000,-151.0,0.00014775,2]
[422380632,1778908239000,-151.0,0.00014775,2]
[422380633,1778908239000,-151.0,0.00014775,2]
[422380636,1778908239000,-479.59,0.00014778,2]
[422380643,1778908239000,-250.0,0.00014959,2]
[422380644,1778908239000,-250.0,0.00014959,2]
[422380646,1778908239000,-798.26,0.00014985,2]
[422380642,1778908239000,-250.0,0.00014959,2]
[422380648,1778908239000,-391.15,0.00014985,2]
[422380640,1778908239000,-388.46,0.00014899,2]
[422380676,1778908239000,-550.91,0.00014999,2]
[422380689,1778908239000,-550.91,0.00014999,2]
[422380687,1778908239000,-550.91,0.00014999,2]
[422380711,1778908239000,-500.0,0.00014999,2]
[422380708,1778908239000,-594.61455555,0.00014999,2]
[422380714,1778908239000,-500.0,0.00014999,2]
[422380713,1778908239000,-500.0,0.00014999,2]
[422380724,1778908239000,-500.0,0.00014999,2]
[422380718,1778908239000,-500.0,0.00014999,2]
[422380720,1778908239000,-500.0,0.00014999,2]
[422380717,1778908239000,-500.0,0.00014999,2]
[422380715,1778908239000,-500.0,0.00014999,2]
[422380716,1778908239000,-500.0,0.00014999,2]
[422380719,1778908239000,-500.0,0.00014999,2]
[422380723,1778908239000,-500.0,0.00014999,2]
[422380712,1778908239000,-500.0,0.00014999,2]
[422380721,1778908239000,-500.0,0.00014999,2]
[422380725,1778908239000,-500.0,0.00014999,2]
[422380727,1778908239000,-500.0,0.00014999,2]
[422380726,1778908239000,-500.0,0.00014999,2]
[422380734,1778908239000,-500.0,0.00014999,2]
[422380731,1778908239000,-500.0,0.00014999,2]
[422380728,1778908239000,-500.0,0.00014999,2]
[422380730,1778908239000,-500.0,0.00014999,2]
[422380732,1778908239000,-500.0,0.00014999,2]
[422380733,1778908239000,-500.0,0.00014999,2]
[422380678,1778908239000,-550.91,0.00014999,2]
[422380735,1778908239000,-500.0,0.00014999,2]
[422380736,1778908239000,-500.0,0.00014999,2]
[422380722,1778908239000,-500.0,0.00014999,2]
[422380709,1778908239000,-600.71595266,0.00014999,2]
[422380729,1778908239000,-500.0,0.00014999,2]
[422380702,1778908239000,-251.64062163,0.00014999,2]
[422380707,1778908239000,-500.0,0.00014999,2]
[422380679,1778908239000,-550.91,0.00014999,2]
[422380685,1778908239000,-550.91,0.00014999,2]
[422380683,1778908239000,-550.91,0.00014999,2]
[422380680,1778908239000,-550.91,0.00014999,2]
[422380684,1778908239000,-550.91,0.00014999,2]
[422380677,1778908239000,-550.91,0.00014999,2]
[422380681,1778908239000,-550.91,0.00014999,2]
[422380686,1778908239000,-550.91,0.00014999,2]
[422380688,1778908239000,-550.91,0.00014999,2]
[422380697,1778908239000,-550.91,0.00014999,2]
[422380693,1778908239000,-550.91,0.00014999,2]
[422380699,1778908239000,-551.09864501,0.00014999,2]
[422380682,1778908239000,-550.91,0.00014999,2]
[422380700,1778908239000,-500.0,0.00014999,2]
[422380691,1778908239000,-550.91,0.00014999,2]
[422380704,1778908239000,-500.0,0.00014999,2]
[422380705,1778908239000,-500.0,0.00014999,2]
[422380703,1778908239000,-500.0,0.00014999,2]
[422380701,1778908239000,-212.7374932,0.00014999,2]
[422380706,1778908239000,-500.0,0.00014999,2]
[422380695,1778908239000,-550.91,0.00014999,2]
[422380690,1778908239000,-550.91,0.00014999,2]
[422380696,1778908239000,-550.91,0.00014999,2]
[422380710,1778908239000,-500.0,0.00014999,2]
[422380694,1778908239000,-550.91,0.00014999,2]
[422380692,1778908239000,-550.91,0.00014999,2]
[422380698,1778908239000,-550.91,0.00014999,2]
[422380760,1778908240000,-500.0,0.00014999,2]
[422380775,1778908240000,-1049.13360265,0.00014999,2]
[422380764,1778908240000,-500.0,0.00014999,2]
[422380765,1778908240000,-500.0,0.00014999,2]
[422380762,1778908240000,-500.0,0.00014999,2]
[422380767,1778908240000,-500.0,0.00014999,2]
[422380763,1778908240000,-500.0,0.00014999,2]
[422380766,1778908240000,-500.0,0.00014999,2]
[422380772,1778908240000,-1049.13360265,0.00014999,2]
[422380774,1778908240000,-1049.13360265,0.00014999,2]
[422380768,1778908240000,-500.0,0.00014999,2]
[422380779,1778908240000,-1049.13360265,0.00014999,2]
[422380781,1778908240000,-1049.13360265,0.00014999,2]
[422380777,1778908240000,-1049.13360265,0.00014999,2]
[422380773,1778908240000,-1049.13360265,0.00014999,2]
[422380778,1778908240000,-1049.13360265,0.00014999,2]
[422380780,1778908240000,-1049.13360265,0.00014999,2]
[422380785,1778908240000,-1049.13360265,0.00014999,2]
[422380783,1778908240000,-1049.13360265,0.00014999,2]
[422380784,1778908240000,-1049.13360265,0.00014999,2]
[422380782,1778908240000,-1049.13360265,0.00014999,2]
[422380787,1778908240000,-1049.13360265,0.00014999,2]
[422380771,1778908240000,-1049.13360265,0.00014999,2]
[422380776,1778908240000,-1049.13360265,0.00014999,2]
[422380770,1778908240000,-501.56132056,0.00014999,2]
[422380748,1778908240000,-500.0,0.00014999,2]
[422380761,1778908240000,-500.0,0.00014999,2]
[422380797,1778908240000,-1049.13360265,0.00014999,2]
[422380737,1778908240000,-500.0,0.00014999,2]
[422380739,1778908240000,-500.0,0.00014999,2]
[422380743,1778908240000,-500.0,0.00014999,2]
[422380740,1778908240000,-500.0,0.00014999,2]
[422380747,1778908240000,-500.0,0.00014999,2]
[422380741,1778908240000,-500.0,0.00014999,2]
[422380738,1778908240000,-500.0,0.00014999,2]
[422380742,1778908240000,-500.0,0.00014999,2]
[422380745,1778908240000,-500.0,0.00014999,2]
[422380746,1778908240000,-500.0,0.00014999,2]
[422380744,1778908240000,-500.0,0.00014999,2]
[422380750,1778908240000,-500.0,0.00014999,2]
[422380752,1778908240000,-500.0,0.00014999,2]
[422380751,1778908240000,-500.0,0.00014999,2]
[422380749,1778908240000,-500.0,0.00014999,2]
[422380759,1778908240000,-500.0,0.00014999,2]
[422380756,1778908240000,-500.0,0.00014999,2]
[422380753,1778908240000,-500.0,0.00014999,2]
[422380757,1778908240000,-500.0,0.00014999,2]
[422380754,1778908240000,-500.0,0.00014999,2]
[422380755,1778908240000,-500.0,0.00014999,2]
[422380758,1778908240000,-500.0,0.00014999,2]
[422380769,1778908240000,-500.0,0.00014999,2]
[422380786,1778908240000,-1049.13360265,0.00014999,2]
[422380791,1778908240000,-1049.13360265,0.00014999,2]
[422380788,1778908240000,-1049.13360265,0.00014999,2]
[422380820,1778908240000,-500.0,0.00014999,2]
[422380825,1778908240000,-500.0,0.00014999,2]
[422380824,1778908240000,-500.0,0.00014999,2]
[422380819,1778908240000,-500.0,0.00014999,2]
[422380821,1778908240000,-152.7696363,0.00014999,2]
[422380823,1778908240000,-198.14496198,0.00014999,2]
[422380822,1778908240000,-500.0,0.00014999,2]
[422380831,1778908240000,-500.0,0.00014999,2]
[422380828,1778908240000,-500.0,0.00014999,2]
[422380833,1778908240000,-300.0,0.00014999,2]
[422380818,1778908240000,-500.0,0.00014999,2]
[422380835,1778908240000,-300.0,0.00014999,2]
[422380837,1778908240000,-896.0,0.00015,5]
[422380829,1778908240000,-500.0,0.00014999,2]
[422380838,1778908240000,-711.0,0.00015,5]
[422380827,1778908240000,-500.0,0.00014999,2]
[422380832,1778908240000,-300.0,0.00014999,2]
[422380830,1778908240000,-500.0,0.00014999,2]
[422380834,1778908240000,-300.0,0.00014999,2]
[422380840,1778908240000,-150.0,0.00015,2]
[422380839,1778908240000,-150.0,0.00015,2]
[422380841,1778908240000,-4271312.042618,0.00015,2]
[422380836,1778908240000,-666.0,0.00014999,2]
[422380816,1778908240000,-500.0,0.00014999,2]
[422380815,1778908240000,-1090.63123349,0.00014999,5]
[422380817,1778908240000,-500.0,0.00014999,2]
[422380793,1778908240000,-1049.13360265,0.00014999,2]
[422380796,1778908240000,-1049.13360265,0.00014999,2]
[422380790,1778908240000,-1049.13360265,0.00014999,2]
[422380792,1778908240000,-1049.13360265,0.00014999,2]
[422380794,1778908240000,-1049.13360265,0.00014999,2]
[422380789,1778908240000,-1049.13360265,0.00014999,2]
[422380842,1778908240000,-644.8419729,0.00015,2]
[422380799,1778908240000,-1049.13360265,0.00014999,2]
[422380814,1778908240000,-500.0,0.00014999,2]
[422380810,1778908240000,-403.08694039,0.00014999,2]
[422380811,1778908240000,-500.0,0.00014999,2]
[422380802,1778908240000,-1049.13360265,0.00014999,2]
[422380800,1778908240000,-1049.13360265,0.00014999,2]
[422380801,1778908240000,-1049.13360265,0.00014999,2]
[422380826,1778908240000,-455.90856275,0.00014999,2]
[422380813,1778908240000,-500.0,0.00014999,2]
[422380804,1778908240000,-1049.13360262,0.00014999,2]
[422380809,1778908240000,-500.0,0.00014999,2]
[422380808,1778908240000,-500.0,0.00014999,2]
[422380805,1778908240000,-1049.13360262,0.00014999,2]
[422380806,1778908240000,-1049.13360262,0.00014999,2]
[422380812,1778908240000,-500.0,0.00014999,2]
[422380803,1778908240000,-1049.13360265,0.00014999,2]
[422380807,1778908240000,-1049.13360262,0.00014999,2]
[422380798,1778908240000,-1049.13360265,0.00014999,2]
[422380846,1778908241000,64175.95838377,0.0003,120]
[422380843,1778908241000,-1332.82347213,0.00015,2]
[422380868,1778908246000,-323.01350699,0.00015,2]
[422380866,1778908246000,-163.46002487,0.000149,2]
[422380867,1778908246000,-535.52606158,0.00015,2]
[422380874,1778908464000,418.52,7.178e-05,2]
[422380875,1778908464000,418.52,7.541e-05,2]
[422380876,1778908465000,418.52,7.904e-05,2]
[422380878,1778908465000,418.52,8.63e-05,2]
[422380877,1778908465000,418.52,8.267e-05,2]
[422380881,1778908468000,418.52,9.719e-05,2]
[422380880,1778908468000,418.52,9.356e-05,2]
[422380879,1778908468000,418.52,8.993e-05,2]
[422380895,1778909254000,251.11,8.23e-05,2]
[422380894,1778909254000,251.11,7.884e-05,2]
[422380893,1778909254000,251.11,7.538e-05,2]
[422380892,1778909254000,251.11,7.192e-05,2]
[422380891,1778909254000,251.11,6.846e-05,2]
[422380896,1778909255000,251.11,8.577e-05,2]
[422380898,1778909255000,169.79057468,8.923e-05,2]
[422380900,1778909255000,251.11,9.615e-05,2]
[422380899,1778909255000,251.11,9.269e-05,2]
[422380901,1778909255000,251.11,9.961e-05,2]
[422380897,1778909255000,81.31942532,8.923e-05,2]
[422380905,1778909268000,-215.03962261,0.00010833,2]
[422380902,1778909268000,-251.11,0.00010307,2]
[422380903,1778909268000,-251.11,0.00010654,2]
[422380904,1778909268000,-160.1,0.00010718,2]
[422380906,1778909268000,-251.11,0.00011,2]
[422380907,1778909268000,-251.11,0.00011346,2]
[422380913,1778909268000,-251.11,0.00013077,2]
[422380910,1778909268000,-118.20037739,0.00012384,2]
[422380909,1778909268000,-251.11,0.00012038,2]
[422380912,1778909268000,-251.11,0.0001273,2]
[422380911,1778909268000,-132.90962261,0.00012384,2]
[422380914,1778909268000,-1364.87037739,0.00013351,2]
[422380908,1778909268000,-251.11,0.00011692,2]
[422380919,1778909269000,-113.76037739,0.000135,2]
[422380915,1778909269000,-635.12962261,0.00013351,2]
[422380916,1778909269000,-500.0,0.00013356,2]
[422380918,1778909269000,-251.11,0.00013423,2]
[422380921,1778909269000,-380.441413,0.0001363,2]
[422380920,1778909269000,-245.05197802,0.000135,2]
[422380923,1778909269000,-1174.50660898,0.00013699,2]
[422380922,1778909269000,-200.0,0.00013699,2]
[422380917,1778909269000,-500.0,0.00013356,2]
[422380933,1778909270000,-342.98660898,0.0001425,2]
[422380932,1778909270000,-1657.01339102,0.000142,5]
[422380931,1778909270000,-1442.98660898,0.000142,5]
[422380930,1778909270000,-557.01339102,0.000141,5]
[422380929,1778909270000,-942.98660898,0.000141,5]
[422380927,1778909270000,-250.0,0.00014,2]
[422380928,1778909270000,-163.0,0.0001404,2]
[422380926,1778909270000,-163.0,0.0001372,2]
[422380924,1778909270000,-181.02339102,0.00013699,2]
[422380925,1778909270000,-299.99,0.00013699,2]
[422380934,1778909271000,-2000.0,0.0001425,2]
[422380936,1778909271000,-2000.0,0.0001425,2]
[422380935,1778909271000,-2000.0,0.0001425,2]
[422380938,1778909272000,-2000.0,0.0001425,2]
[422380937,1778909272000,-2000.0,0.0001425,2]
[422380941,1778909273000,-2000.0,0.0001425,2]
[422380940,1778909273000,-2000.0,0.0001425,2]
[422380939,1778909273000,-2000.0,0.0001425,2]
[422380944,1778909274000,-2000.0,0.0001425,2]
[422380943,1778909274000,-2000.0,0.0001425,2]
[422380942,1778909274000,-2000.0,0.0001425,2]
[422380946,1778909275000,-2000.0,0.0001425,2]
[422380945,1778909275000,-2000.0,0.0001425,2]
[422380947,1778909276000,-2000.0,0.0001425,2]
[422380948,1778909276000,-2000.0,0.0001425,2]
[422380949,1778909276000,-2000.0,0.0001425,2]
[422380950,1778909277000,-2000.0,0.0001425,2]
[422380952,1778909277000,-2000.0,0.0001425,2]
[422380951,1778909277000,-2000.0,0.0001425,2]
[422380955,1778909278000,-2000.0,0.0001425,2]
[422380953,1778909278000,-2000.0,0.0001425,2]
[422380954,1778909278000,-2000.0,0.0001425,2]
[422380957,1778909279000,-2000.0,0.0001425,2]
[422380956,1778909279000,-2000.0,0.0001425,2]
[422380958,1778909280000,-2000.0,0.0001425,2]
[422380960,1778909282000,-2000.0,0.0001425,2]
[422380959,1778909282000,-2000.0,0.0001425,2]
[422380961,1778909283000,-2000.0,0.0001425,2]
[422380962,1778909283000,-2000.0,0.0001425,2]
[422380963,1778909283000,-2000.0,0.0001425,2]
[422380966,1778909284000,-2000.0,0.0001425,2]
[422380965,1778909284000,-2000.0,0.0001425,2]
[422380964,1778909284000,-2000.0,0.0001425,2]
[422380968,1778909285000,-2000.0,0.0001425,2]
[422380967,1778909285000,-2000.0,0.0001425,2]
[422380971,1778909286000,-2000.0,0.0001425,2]
[422380970,1778909286000,-2000.0,0.0001425,2]
[422380969,1778909286000,-2000.0,0.0001425,2]
[422380972,1778909287000,-2000.0,0.0001425,2]
[422380973,1778909288000,-2000.0,0.0001425,2]
[422380974,1778909290000,-2000.0,0.0001425,2]
[422380975,1778909297000,-200.0,0.0001425,2]
[422380977,1778909298000,-200.0,0.0001425,2]
[422380976,1778909298000,-200.0,0.0001425,2]
[422380979,1778909299000,-200.0,0.0001425,2]
[422380978,1778909299000,-200.0,0.0001425,2]
[422380980,1778909305000,-200.0,0.0001425,2]
[422380981,1778909306000,-200.0,0.0001425,2]
[422380982,1778909315000,-150.0,0.0001425,2]
[422381005,1778909431000,-4600.0,0.000143,5]
[422381003,1778909431000,-300.0,0.00014275,2]
[422381001,1778909431000,-2500.0,0.00014275,2]
[422380999,1778909431000,-206.03582025,0.00014275,2]
[422380997,1778909431000,-716.39457918,0.00014275,2]
[422380995,1778909431000,-215.03962261,0.00014252,2]
[422380993,1778909431000,-40841.26041138,0.0001425,2]
[422380989,1778909431000,-4644.9348375,0.00014248,2]
[422380986,1778909431000,-187.27090056,0.00013356,2]
[422380985,1778909431000,-312.72909944,0.00013356,2]
[422381011,1778909431000,-2553.99223892,0.00014362,2]
[422380991,1778909431000,-4456.6888424,0.00014248,2]
[422381007,1778909431000,-163.0,0.0001436,2]
[422380984,1778909431000,-500.0,0.00013356,2]
[422381009,1778909431000,-2500.0,0.00014362,2]
[422381008,1778909431000,-2500.0,0.00014362,2]
[422381024,1778909431000,-1500.0,0.000147,5]
[422381022,1778909431000,-1500.0,0.000146,5]
[422381020,1778909431000,-49290.0,0.00014521,2]
[422381021,1778909431000,-5937.1,0.00014521,2]
[422381018,1778909431000,-7800.0,0.000145,5]
[422381023,1778909431000,-163.0,0.0001468,2]
[422381016,1778909431000,-6200.0,0.000144,5]
[422381017,1778909431000,-500.0,0.00014452,2]
[422381013,1778909431000,-300.0,0.00014362,2]
[422381015,1778909431000,-300.0,0.00014362,2]
[422381019,1778909431000,-860.0,0.00014521,2]
[422381014,1778909431000,-300.0,0.00014362,2]
[422381065,1778909432000,-3089.8905324,0.00014999,2]
[422381062,1778909432000,-500.0,0.00014998,2]
[422381063,1778909432000,-731.52,0.00014998,2]
[422381064,1778909432000,-461.79272173,0.00014998,2]
[422381060,1778909432000,-490.0,0.00014998,2]
[422381057,1778909432000,-500.0,0.00014998,2]
[422381061,1778909432000,-500.0,0.00014998,2]
[422381054,1778909432000,-221.42189,0.0001495,2]
[422381075,1778909432000,-500.0,0.00014999,2]
[422381058,1778909432000,-508.38766567,0.00014998,2]
[422381059,1778909432000,-507.39599137,0.00014998,2]
[422381076,1778909432000,-500.0,0.00014999,2]
[422381073,1778909432000,-500.0,0.00014999,2]
[422381067,1778909432000,-500.0,0.00014999,2]
[422381070,1778909432000,-500.0,0.00014999,2]
[422381069,1778909432000,-500.0,0.00014999,2]
[422381068,1778909432000,-200.68450819,0.00014999,2]
[422381071,1778909432000,-500.0,0.00014999,2]
[422381056,1778909432000,-151.0,0.00014997,2]
[422381074,1778909432000,-500.0,0.00014999,2]
[422381072,1778909432000,-500.0,0.00014999,2]
[422381077,1778909432000,-500.0,0.00014999,2]
[422381079,1778909432000,-500.0,0.00014999,2]
[422381078,1778909432000,-500.0,0.00014999,2]
[422381080,1778909432000,-500.0,0.00014999,2]
[422381082,1778909432000,-500.0,0.00014999,2]
[422381066,1778909432000,-1090.63123349,0.00014999,5]
[422381053,1778909432000,-2241.82839202,0.000149,2]
[422381044,1778909432000,-209.49000111,0.000149,2]
[422381047,1778909432000,-310.768,0.000149,2]
[422381088,1778909432000,-500.0,0.00014999,2]
[422381025,1778909432000,-150.0,0.00014724,2]
[422381026,1778909432000,-150.0,0.00014724,2]
[422381027,1778909432000,-150.0,0.00014724,2]
[422381028,1778909432000,-150.0,0.00014724,2]
[422381029,1778909432000,-204.8189617,0.00014724,2]
[422381033,1778909432000,-700.0,0.00014871,2]
[422381030,1778909432000,-1017.72,0.000148,2]
[422381031,1778909432000,-1500.0,0.000148,5]
[422381032,1778909432000,-221.42189,0.0001485,2]
[422381038,1778909432000,-2241.82839202,0.00014899,2]
[422381034,1778909432000,-200.0,0.0001488,2]
[422381050,1778909432000,-383.67903915,0.000149,2]
[422381036,1778909432000,-2241.82839202,0.00014899,2]
[422381035,1778909432000,-2241.82839206,0.00014899,2]
[422381039,1778909432000,-2241.82839202,0.00014899,2]
[422381037,1778909432000,-2241.82839202,0.00014899,2]
[422381041,1778909432000,-2241.82839202,0.000149,2]
[422381043,1778909432000,-2241.82839202,0.000149,2]
[422381042,1778909432000,-2241.82839202,0.000149,2]
[422381051,1778909432000,-238.77925062,0.000149,2]
[422381052,1778909432000,-375.82456219,0.000149,2]
[422381045,1778909432000,-26154.9569,0.000149,2]
[422381046,1778909432000,-8784.4861,0.000149,2]
[422381048,1778909432000,-1500.0,0.000149,5]
[422381049,1778909432000,-5000.0,0.000149,2]
[422381040,1778909432000,-2241.82839202,0.000149,2]
[422381084,1778909432000,-549.13360262,0.00014999,2]
[422381055,1778909432000,-664.09,0.00014985,2]
[422381085,1778909432000,-500.0,0.00014999,2]
[422381122,1778909432000,-500.0,0.00014999,2]
[422381115,1778909432000,-500.0,0.00014999,2]
[422381114,1778909432000,-500.0,0.00014999,2]
[422381123,1778909432000,-549.13360265,0.00014999,2]
[422381118,1778909432000,-500.0,0.00014999,2]
[422381119,1778909432000,-500.0,0.00014999,2]
[422381121,1778909432000,-549.13360265,0.00014999,2]
[422381120,1778909432000,-500.0,0.00014999,2]
[422381125,1778909432000,-549.13360265,0.00014999,2]
[422381126,1778909432000,-500.0,0.00014999,2]
[422381128,1778909432000,-500.0,0.00014999,2]
[422381129,1778909432000,-549.13360265,0.00014999,2]
[422381116,1778909432000,-549.13360265,0.00014999,2]
[422381132,1778909432000,-403.08694039,0.00014999,2]
[422381133,1778909432000,-549.13360265,0.00014999,2]
[422381127,1778909432000,-549.13360265,0.00014999,2]
[422381131,1778909432000,-500.0,0.00014999,2]
[422381134,1778909432000,-500.0,0.00014999,2]
[422381135,1778909432000,-500.0,0.00014999,2]
[422381136,1778909432000,-549.13360265,0.00014999,2]
[422381138,1778909432000,-549.13360265,0.00014999,2]
[422381137,1778909432000,-500.0,0.00014999,2]
[422381142,1778909432000,-500.0,0.00014999,2]
[422381140,1778909432000,-500.0,0.00014999,2]
[422381143,1778909432000,-500.0,0.00014999,2]
[422381139,1778909432000,-500.0,0.00014999,2]
[422381130,1778909432000,-500.0,0.00014999,2]
[422381117,1778909432000,-343.1,0.00014999,2]
[422381124,1778909432000,-500.0,0.00014999,2]
[422381113,1778909432000,-549.13360265,0.00014999,2]
[422381086,1778909432000,-500.0,0.00014999,2]
[422381081,1778909432000,-549.13360262,0.00014999,2]
[422381087,1778909432000,-549.13360262,0.00014999,2]
[422381089,1778909432000,-549.13360265,0.00014999,2]
[422381091,1778909432000,-500.0,0.00014999,2]
[422381141,1778909432000,-500.0,0.00014999,2]
[422381090,1778909432000,-549.13360265,0.00014999,2]
[422381095,1778909432000,-549.13360265,0.00014999,2]
[422381094,1778909432000,-500.0,0.00014999,2]
[422381097,1778909432000,-549.13360265,0.00014999,2]
[422381096,1778909432000,-500.0,0.00014999,2]
[422381093,1778909432000,-549.13360265,0.00014999,2]
[422381100,1778909432000,-500.0,0.00014999,2]
[422381099,1778909432000,-549.13360265,0.00014999,2]
[422381092,1778909432000,-500.0,0.00014999,2]
[422381101,1778909432000,-549.13360265,0.00014999,2]
[422381098,1778909432000,-500.0,0.00014999,2]
[422381112,1778909432000,-549.13360265,0.00014999,2]
[422381110,1778909432000,-549.13360265,0.00014999,2]
[422381111,1778909432000,-500.0,0.00014999,2]
[422381109,1778909432000,-500.0,0.00014999,2]
[422381106,1778909432000,-54483.5253127,0.00014999,2]
[422381083,1778909432000,-549.13360262,0.00014999,2]
[422381107,1778909432000,-500.0,0.00014999,2]
[422381105,1778909432000,-549.13360265,0.00014999,2]
[422381102,1778909432000,-500.0,0.00014999,2]
[422381104,1778909432000,-500.0,0.00014999,2]
[422381103,1778909432000,-549.13360265,0.00014999,2]
[422381108,1778909432000,-549.13360265,0.00014999,2]
[422381155,1778909433000,-455.90856275,0.00014999,2]